[Event "Early-Titled-Tuesday-Blitz-October-03-2023"]
[Site "Chess.com"]
[Date "2023.10.03"]
[Round "8"]
[White "JAN2404"]
[Black "inegrepus"]
[Result "1-0"]
[WhiteElo "2089"]
[BlackElo "2165"]
[TimeControl "180+1"]
[EndTime "9:29:25 PDT"]
[Termination "JAN2404 won by checkmate"]

1. e4 {[%clk 0:03:00.9]} 1... c5 {[%clk 0:02:37]} 2. Nf3 {[%clk 0:02:56.6]} 2...
Nc6 {[%clk 0:02:35.7]} 3. Bc4 {[%clk 0:02:52.8]} 3... e6 {[%clk 0:02:32.5]} 4.
d4 {[%clk 0:02:49.9]} 4... d5 {[%clk 0:02:30.8]} 5. exd5 {[%clk 0:02:48.4]} 5...
exd5 {[%clk 0:02:31.7]} 6. Bb5 {[%clk 0:02:46.8]} 6... Nf6 {[%clk 0:02:31.1]} 7.
O-O {[%clk 0:02:44.8]} 7... Be7 {[%clk 0:02:29.2]} 8. dxc5 {[%clk 0:02:42]} 8...
O-O {[%clk 0:02:29.2]} 9. Bg5 {[%clk 0:02:39.2]} 9... Bxc5 {[%clk 0:02:27.7]}
10. Bxf6 {[%clk 0:02:28.4]} 10... Qxf6 {[%clk 0:02:27.7]} 11. Qxd5 {[%clk
0:02:28.4]} 11... Bb6 {[%clk 0:02:22.8]} 12. Nc3 {[%clk 0:02:21.6]} 12... Be6
{[%clk 0:02:21.5]} 13. Qg5 {[%clk 0:02:04]} 13... Qxg5 {[%clk 0:01:59.4]} 14.
Nxg5 {[%clk 0:02:01.7]} 14... Bf5 {[%clk 0:02:00.3]} 15. Bxc6 {[%clk 0:01:35.4]}
15... bxc6 {[%clk 0:01:58.5]} 16. Nge4 {[%clk 0:01:34.2]} 16... Rfe8 {[%clk
0:01:55.3]} 17. Rfe1 {[%clk 0:01:33.5]} 17... Ba5 {[%clk 0:01:54]} 18. h3 {[%clk
0:00:55.4]} 18... g6 {[%clk 0:01:19.6]} 19. Nf6+ {[%clk 0:00:54.7]} 19... Kf8
{[%clk 0:01:15.7]} 20. Rxe8+ {[%clk 0:00:41]} 20... Rxe8 {[%clk 0:01:16.6]} 21.
Nxe8 {[%clk 0:00:41.1]} 21... Kxe8 {[%clk 0:01:17]} 22. Re1+ {[%clk 0:00:34.9]}
22... Kd7 {[%clk 0:01:17.1]} 23. Re2 {[%clk 0:00:34.1]} 23... Kd6 {[%clk
0:01:11]} 24. a3 {[%clk 0:00:31.4]} 24... Bb6 {[%clk 0:01:03.3]} 25. g4 {[%clk
0:00:24.4]} 25... Be6 {[%clk 0:01:02.7]} 26. Kg2 {[%clk 0:00:19.3]} 26... h6
{[%clk 0:01:02]} 27. Kf3 {[%clk 0:00:18.8]} 27... a5 {[%clk 0:00:56]} 28. h4
{[%clk 0:00:18.2]} 28... Bd8 {[%clk 0:00:49.2]} 29. g5 {[%clk 0:00:14.1]} 29...
hxg5 {[%clk 0:00:47.9]} 30. hxg5 {[%clk 0:00:15]} 30... Bxg5 {[%clk 0:00:47.6]}
31. Ne4+ {[%clk 0:00:15.6]} 31... Kd5 {[%clk 0:00:46.5]} 32. Nxg5 {[%clk
0:00:16.5]} 32... Bf5 {[%clk 0:00:46.6]} 33. c3 {[%clk 0:00:15.7]} 33... Kc4
{[%clk 0:00:45.9]} 34. Ne4 {[%clk 0:00:14.9]} 34... Kb3 {[%clk 0:00:46.8]} 35.
Nd6 {[%clk 0:00:14.6]} 35... Be6 {[%clk 0:00:46.1]} 36. Nb7 {[%clk 0:00:11.6]}
36... c5 {[%clk 0:00:47]} 37. Nxc5+ {[%clk 0:00:11.2]} 37... Ka2 {[%clk
0:00:46.1]} 38. Nxe6 {[%clk 0:00:12.1]} 38... fxe6 {[%clk 0:00:45.9]} 39. c4
{[%clk 0:00:12.8]} 39... g5 {[%clk 0:00:46.7]} 40. c5 {[%clk 0:00:13.7]} 40...
g4+ {[%clk 0:00:47.4]} 41. Kxg4 {[%clk 0:00:13.2]} 41... e5 {[%clk 0:00:48.3]}
42. c6 {[%clk 0:00:12.7]} 42... e4 {[%clk 0:00:49.2]} 43. Rxe4 {[%clk
0:00:12.5]} 43... a4 {[%clk 0:00:48.6]} 44. Re3 {[%clk 0:00:12.4]} 44... Kb1
{[%clk 0:00:49.2]} 45. c7 {[%clk 0:00:13.3]} 45... Ka2 {[%clk 0:00:49.8]} 46.
c8=Q {[%clk 0:00:13.9]} 46... Kb1 {[%clk 0:00:50.6]} 47. Qc3 {[%clk 0:00:11.1]}
47... Ka2 {[%clk 0:00:51.5]} 48. b3 {[%clk 0:00:09]} 48... Kb1 {[%clk
0:00:46.6]} 49. Re1+ {[%clk 0:00:08.2]} 49... Ka2 {[%clk 0:00:46.7]} 50. Ra1#
{[%clk 0:00:08.4]} 1-0

[Event "Early-Titled-Tuesday-Blitz-October-03-2023"]
[Site "Chess.com"]
[Date "2023.10.03"]
[Round "8"]
[White "rachidhuilda"]
[Black "nitpicker"]
[Result "1-0"]
[WhiteElo "2394"]
[BlackElo "2240"]
[TimeControl "180+1"]
[EndTime "9:29:26 PDT"]
[Termination "rachidhuilda won on time"]

1. d4 {[%clk 0:03:00.9]} 1... Nf6 {[%clk 0:02:59]} 2. Bg5 {[%clk 0:02:56.9]}
2... d5 {[%clk 0:02:57.8]} 3. Bxf6 {[%clk 0:02:53.6]} 3... exf6 {[%clk
0:02:56.9]} 4. e3 {[%clk 0:02:51.6]} 4... Bd6 {[%clk 0:02:56.1]} 5. g3 {[%clk
0:02:51.4]} 5... c6 {[%clk 0:02:54.7]} 6. Bg2 {[%clk 0:02:51.8]} 6... f5 {[%clk
0:02:53.9]} 7. Ne2 {[%clk 0:02:51.9]} 7... Nd7 {[%clk 0:02:53.2]} 8. Nd2 {[%clk
0:02:52.4]} 8... Nf6 {[%clk 0:02:52.5]} 9. c4 {[%clk 0:02:52.7]} 9... h5 {[%clk
0:02:35.5]} 10. cxd5 {[%clk 0:02:45.5]} 10... cxd5 {[%clk 0:02:34.5]} 11. Nc3
{[%clk 0:02:45.2]} 11... Be6 {[%clk 0:02:25.7]} 12. Qb3 {[%clk 0:02:43.2]} 12...
Be7 {[%clk 0:01:22.3]} 13. Qb5+ {[%clk 0:02:39.1]} 13... Kf8 {[%clk 0:01:21.3]}
14. h4 {[%clk 0:02:27.3]} 14... Ne4 {[%clk 0:01:21.4]} 15. Ndxe4 {[%clk
0:02:22.6]} 15... fxe4 {[%clk 0:01:17.5]} 16. Bh3 {[%clk 0:02:10.5]} 16... Rh6
{[%clk 0:00:56.5]} 17. Rc1 {[%clk 0:02:06.9]} 17... Qb6 {[%clk 0:00:49.3]} 18.
Qxb6 {[%clk 0:02:05.1]} 18... axb6 {[%clk 0:00:50.2]} 19. Bxe6 {[%clk 0:02:02]}
19... fxe6 {[%clk 0:00:48.6]} 20. a3 {[%clk 0:02:01.9]} 20... g5 {[%clk
0:00:45.2]} 21. hxg5 {[%clk 0:02:01.2]} 21... Bxg5 {[%clk 0:00:45.5]} 22. Ke2
{[%clk 0:02:01.4]} 22... Kg7 {[%clk 0:00:25.7]} 23. Rh2 {[%clk 0:02:01.5]} 23...
Rf8 {[%clk 0:00:24.3]} 24. Rch1 {[%clk 0:01:59.9]} 24... Rhf6 {[%clk 0:00:22.5]}
25. Nd1 {[%clk 0:01:59.7]} 25... h4 {[%clk 0:00:18.9]} 26. gxh4 {[%clk
0:01:59.5]} 26... Bh6 {[%clk 0:00:19.7]} 27. Rg2+ {[%clk 0:01:58.6]} 27... Kh7
{[%clk 0:00:19.9]} 28. Rh3 {[%clk 0:01:48.1]} 28... Rc8 {[%clk 0:00:18.6]} 29.
Nc3 {[%clk 0:01:47.2]} 29... b5 {[%clk 0:00:14.4]} 30. Rh1 {[%clk 0:01:37.6]}
30... Rc4 {[%clk 0:00:13.2]} 31. Rc1 {[%clk 0:01:27.7]} 31... b4 {[%clk
0:00:13.2]} 32. axb4 {[%clk 0:01:25.6]} 32... Rxb4 {[%clk 0:00:12.2]} 33. Rc2
{[%clk 0:01:26.1]} 33... Bf8 {[%clk 0:00:09.4]} 34. Rg4 {[%clk 0:01:20.6]} 34...
Rh6 {[%clk 0:00:09]} 35. Nxe4 {[%clk 0:00:47.9]} 35... dxe4 {[%clk 0:00:06.8]}
36. Rxe4 {[%clk 0:00:48.5]} 36... Rb6 {[%clk 0:00:05.7]} 37. Rc7+ {[%clk
0:00:48.3]} 37... Kh8 {[%clk 0:00:04.9]} 38. Rf4 {[%clk 0:00:46.4]} 38... Bg7
{[%clk 0:00:04.4]} 39. Rff7 {[%clk 0:00:44.6]} 39... Rxb2+ {[%clk 0:00:03.4]}
40. Kf3 {[%clk 0:00:44.6]} 40... Rg6 {[%clk 0:00:02.7]} 41. Rxb7 {[%clk
0:00:31.4]} 41... Rf6+ {[%clk 0:00:02.4]} 42. Rxf6 {[%clk 0:00:30.6]} 42... Bxf6
{[%clk 0:00:03.3]} 43. Rxb2 {[%clk 0:00:29.7]} 1-0

[Event "Early-Titled-Tuesday-Blitz-October-03-2023"]
[Site "Chess.com"]
[Date "2023.10.03"]
[Round "8"]
[White "ActorXu"]
[Black "sergoy"]
[Result "0-1"]
[WhiteElo "2722"]
[BlackElo "3016"]
[TimeControl "180+1"]
[EndTime "9:29:27 PDT"]
[Termination "sergoy won on time"]

1. e4 {[%clk 0:03:00.9]} 1... c5 {[%clk 0:03:00.3]} 2. Nf3 {[%clk 0:03:00.5]}
2... d6 {[%clk 0:03:01]} 3. Bb5+ {[%clk 0:03:00.5]} 3... Nd7 {[%clk 0:03:01]} 4.
d4 {[%clk 0:03:00.1]} 4... cxd4 {[%clk 0:03:01.1]} 5. Nxd4 {[%clk 0:03:00.8]}
5... Nf6 {[%clk 0:03:00]} 6. O-O {[%clk 0:03:01]} 6... a6 {[%clk 0:02:59]} 7.
Bd3 {[%clk 0:03:00.3]} 7... g6 {[%clk 0:02:58.7]} 8. c4 {[%clk 0:03:00.1]} 8...
Bg7 {[%clk 0:02:59.2]} 9. Nc3 {[%clk 0:03:00.6]} 9... O-O {[%clk 0:02:59.9]} 10.
Be3 {[%clk 0:02:58.2]} 10... Ne5 {[%clk 0:02:55.1]} 11. h3 {[%clk 0:02:58.2]}
11... Bd7 {[%clk 0:02:54.6]} 12. Rc1 {[%clk 0:02:57.8]} 12... Rc8 {[%clk
0:02:54.6]} 13. b3 {[%clk 0:02:54.9]} 13... Qa5 {[%clk 0:02:54.7]} 14. a4 {[%clk
0:02:49.7]} 14... e6 {[%clk 0:02:47.3]} 15. Re1 {[%clk 0:02:46.2]} 15... Rfd8
{[%clk 0:02:46.9]} 16. Bf1 {[%clk 0:02:38.3]} 16... Be8 {[%clk 0:02:46.9]} 17.
Qd2 {[%clk 0:02:07.8]} 17... d5 {[%clk 0:02:10.2]} 18. f4 {[%clk 0:01:48.9]}
18... Nc6 {[%clk 0:01:34.2]} 19. e5 {[%clk 0:01:48.1]} 19... Nxd4 {[%clk
0:01:31.3]} 20. Bxd4 {[%clk 0:01:47.6]} 20... dxc4 {[%clk 0:01:30.5]} 21. Qf2
{[%clk 0:01:10.5]} 21... Rxd4 {[%clk 0:00:24.6]} 22. Qxd4 {[%clk 0:01:09.4]}
22... Bf8 {[%clk 0:00:25.2]} 23. Kh2 {[%clk 0:00:51.9]} 23... Bc5 {[%clk
0:00:24.9]} 24. Qxc4 {[%clk 0:00:33.6]} 24... Bg1+ {[%clk 0:00:21.8]} 25. Kxg1
{[%clk 0:00:33.5]} 25... Rxc4 {[%clk 0:00:22.5]} 26. Bxc4 {[%clk 0:00:32.6]}
26... Nh5 {[%clk 0:00:23.2]} 27. Ne4 {[%clk 0:00:23.1]} 27... Bc6 {[%clk
0:00:22.9]} 28. Be2 {[%clk 0:00:09.2]} 28... Nxf4 {[%clk 0:00:19.1]} 29. Nf6+
{[%clk 0:00:08.9]} 29... Kg7 {[%clk 0:00:19.1]} 30. Bf3 {[%clk 0:00:04.8]} 30...
Bxf3 {[%clk 0:00:17.8]} 31. gxf3 {[%clk 0:00:05.3]} 31... Qd2 {[%clk 0:00:17.6]}
32. Ne8+ {[%clk 0:00:03.4]} 32... Kh6 {[%clk 0:00:17.6]} 0-1

[Event "Early-Titled-Tuesday-Blitz-October-03-2023"]
[Site "Chess.com"]
[Date "2023.10.03"]
[Round "8"]
[White "Journey_to_GrandMaster_YT"]
[Black "GalaxyRoman"]
[Result "1-0"]
[WhiteElo "2593"]
[BlackElo "2709"]
[TimeControl "180+1"]
[EndTime "9:29:27 PDT"]
[Termination "Journey_to_GrandMaster_YT won by resignation"]

1. d4 {[%clk 0:02:59.5]} 1... Nf6 {[%clk 0:02:56.1]} 2. Nf3 {[%clk 0:02:59.6]}
2... e6 {[%clk 0:02:54.4]} 3. c4 {[%clk 0:02:59.3]} 3... b6 {[%clk 0:02:54]} 4.
e3 {[%clk 0:02:58.1]} 4... Bb7 {[%clk 0:02:52.7]} 5. Bd3 {[%clk 0:02:58.3]} 5...
c5 {[%clk 0:02:42.7]} 6. O-O {[%clk 0:02:55.1]} 6... Be7 {[%clk 0:02:40.4]} 7.
Nc3 {[%clk 0:02:53.8]} 7... O-O {[%clk 0:02:40.3]} 8. d5 {[%clk 0:02:52.5]} 8...
exd5 {[%clk 0:02:37.7]} 9. cxd5 {[%clk 0:02:53.4]} 9... d6 {[%clk 0:02:27.4]}
10. e4 {[%clk 0:02:48.7]} 10... Nbd7 {[%clk 0:02:27]} 11. h3 {[%clk 0:02:36.2]}
11... a6 {[%clk 0:02:25.5]} 12. a4 {[%clk 0:02:36]} 12... Re8 {[%clk 0:02:25.7]}
13. Bf4 {[%clk 0:02:34.9]} 13... Bf8 {[%clk 0:02:25.7]} 14. Re1 {[%clk 0:02:27]}
14... Ne5 {[%clk 0:02:25.3]} 15. Nxe5 {[%clk 0:01:57.3]} 15... dxe5 {[%clk
0:02:26.2]} 16. Be3 {[%clk 0:01:57]} 16... Rc8 {[%clk 0:02:21.2]} 17. Qe2 {[%clk
0:01:49.5]} 17... Ra8 {[%clk 0:01:58.3]} 18. Rab1 {[%clk 0:01:39.3]} 18... Re7
{[%clk 0:01:49.5]} 19. a5 {[%clk 0:01:37.8]} 19... Rd7 {[%clk 0:01:41.2]} 20.
axb6 {[%clk 0:01:33.8]} 20... Qxb6 {[%clk 0:01:41.4]} 21. b4 {[%clk 0:01:21.8]}
21... Qc7 {[%clk 0:00:20.7]} 22. bxc5 {[%clk 0:01:21]} 22... Bxc5 {[%clk
0:00:20.6]} 23. Bxc5 {[%clk 0:01:18.2]} 23... Qxc5 {[%clk 0:00:19.8]} 24. Na4
{[%clk 0:01:18.5]} 24... Qd6 {[%clk 0:00:14.4]} 25. Nb6 {[%clk 0:01:18.1]} 25...
Rad8 {[%clk 0:00:12.1]} 26. Nxd7 {[%clk 0:01:17.4]} 26... Rxd7 {[%clk 0:00:13]}
27. Ra1 {[%clk 0:01:15.1]} 27... h6 {[%clk 0:00:09.5]} 28. Bxa6 {[%clk
0:01:13.8]} 28... Kh7 {[%clk 0:00:05]} 29. Bxb7 {[%clk 0:01:04.5]} 29... Rxb7
{[%clk 0:00:05.9]} 30. Ra6 {[%clk 0:01:04.8]} 30... Qc5 {[%clk 0:00:05.7]} 31.
Rc6 {[%clk 0:01:04.6]} 31... Qd4 {[%clk 0:00:06.2]} 32. Qe3 {[%clk 0:01:00.7]}
32... Qb4 {[%clk 0:00:05.5]} 33. Qc3 {[%clk 0:00:48.4]} 33... Qa4 {[%clk
0:00:04.6]} 34. Qxe5 {[%clk 0:00:46.2]} 34... Rb8 {[%clk 0:00:02.7]} 35. Rxf6
{[%clk 0:00:45.9]} 35... Re8 {[%clk 0:00:02.3]} 36. Qf5+ {[%clk 0:00:45.2]}
36... Kg8 {[%clk 0:00:02.5]} 37. Rxf7 {[%clk 0:00:44.9]} 37... Qb4 {[%clk
0:00:03.4]} 38. Rf1 {[%clk 0:00:42.3]} 38... Rxe4 {[%clk 0:00:02.5]} 39. Rf8+
{[%clk 0:00:42.2]} 39... Qxf8 {[%clk 0:00:03]} 40. Qxe4 {[%clk 0:00:42]} 40...
Qf7 {[%clk 0:00:03]} 41. Qe6 {[%clk 0:00:41.5]} 1-0

[Event "Early-Titled-Tuesday-Blitz-October-03-2023"]
[Site "Chess.com"]
[Date "2023.10.03"]
[Round "8"]
[White "Arystanner"]
[Black "Aradhya2000"]
[Result "0-1"]
[WhiteElo "2820"]
[BlackElo "2709"]
[TimeControl "180+1"]
[EndTime "9:29:29 PDT"]
[Termination "Aradhya2000 won by resignation"]

1. e4 {[%clk 0:03:00.9]} 1... e5 {[%clk 0:03:00.1]} 2. Nf3 {[%clk 0:03:01]} 2...
Nf6 {[%clk 0:03:00.5]} 3. Nc3 {[%clk 0:03:00.6]} 3... Nc6 {[%clk 0:02:57.3]} 4.
d4 {[%clk 0:02:59.4]} 4... Bb4 {[%clk 0:02:56.1]} 5. d5 {[%clk 0:02:45.8]} 5...
Ne7 {[%clk 0:02:55.6]} 6. Bd3 {[%clk 0:02:43.1]} 6... d6 {[%clk 0:02:51.2]} 7.
O-O {[%clk 0:02:43]} 7... Bxc3 {[%clk 0:02:50.7]} 8. bxc3 {[%clk 0:02:42.9]}
8... O-O {[%clk 0:02:51.4]} 9. c4 {[%clk 0:02:43.2]} 9... Ng6 {[%clk 0:02:51]}
10. h3 {[%clk 0:02:31.4]} 10... b6 {[%clk 0:02:49.7]} 11. a4 {[%clk 0:02:31.3]}
11... a5 {[%clk 0:02:49.5]} 12. Nh2 {[%clk 0:02:19.6]} 12... Bd7 {[%clk
0:02:48.8]} 13. c3 {[%clk 0:02:15.4]} 13... Re8 {[%clk 0:02:43.3]} 14. Bc2
{[%clk 0:02:14.5]} 14... h6 {[%clk 0:02:37.4]} 15. Re1 {[%clk 0:02:14.9]} 15...
Qc8 {[%clk 0:02:01.3]} 16. Qf3 {[%clk 0:02:07.9]} 16... Nf4 {[%clk 0:01:59.8]}
17. Bxf4 {[%clk 0:02:06.1]} 17... exf4 {[%clk 0:02:00.2]} 18. Qxf4 {[%clk
0:02:06.8]} 18... Qa6 {[%clk 0:02:00.4]} 19. Bd3 {[%clk 0:02:03.3]} 19... Bc8
{[%clk 0:01:54.4]} 20. e5 {[%clk 0:01:59.7]} 20... dxe5 {[%clk 0:01:54.1]} 21.
Rxe5 {[%clk 0:02:00.6]} 21... Rxe5 {[%clk 0:01:54.5]} 22. Qxe5 {[%clk
0:02:01.5]} 22... Qb7 {[%clk 0:01:52.5]} 23. Nf3 {[%clk 0:01:51.1]} 23... Bd7
{[%clk 0:01:52.6]} 24. Qd4 {[%clk 0:01:50.3]} 24... c6 {[%clk 0:01:53.1]} 25.
Ne5 {[%clk 0:01:46.3]} 25... cxd5 {[%clk 0:01:50.8]} 26. cxd5 {[%clk 0:01:47.2]}
26... Rc8 {[%clk 0:01:36.8]} 27. c4 {[%clk 0:01:47.1]} 27... Be8 {[%clk
0:01:37.1]} 28. Rb1 {[%clk 0:01:41.5]} 28... Bxa4 {[%clk 0:01:36.1]} 29. Rxb6
{[%clk 0:01:41.9]} 29... Qe7 {[%clk 0:01:33.5]} 30. d6 {[%clk 0:01:35.9]} 30...
Qd8 {[%clk 0:01:28.3]} 31. c5 {[%clk 0:01:33.1]} 31... Nd7 {[%clk 0:01:25.3]}
32. Ra6 {[%clk 0:01:13.1]} 32... Nxc5 {[%clk 0:01:21.1]} 33. Nxf7 {[%clk
0:01:05.7]} 33... Kxf7 {[%clk 0:01:06.8]} 34. Ra7+ {[%clk 0:01:05.1]} 34... Bd7
{[%clk 0:01:05.7]} 35. Bc4+ {[%clk 0:01:03.2]} 35... Kf8 {[%clk 0:01:04.6]} 36.
Rxa5 {[%clk 0:00:33.4]} 36... Qf6 {[%clk 0:00:56.7]} 37. Qd5 {[%clk 0:00:25.3]}
37... Ne6 {[%clk 0:00:37.5]} 38. Qd3 {[%clk 0:00:23.3]} 38... Nf4 {[%clk
0:00:34.8]} 39. Qh7 {[%clk 0:00:21.5]} 39... Rxc4 {[%clk 0:00:34.6]} 40. Qh8+
{[%clk 0:00:20.7]} 40... Kf7 {[%clk 0:00:33.8]} 41. Ra8 {[%clk 0:00:20.5]} 41...
Ne2+ {[%clk 0:00:32.5]} 42. Kf1 {[%clk 0:00:18]} 42... Ng3+ {[%clk 0:00:32.2]}
43. Kg1 {[%clk 0:00:18.3]} 43... Rc1+ {[%clk 0:00:32.3]} 44. Kh2 {[%clk
0:00:18.4]} 44... Nf1+ {[%clk 0:00:32.9]} 45. Kg1 {[%clk 0:00:19.2]} 45... Ne3+
{[%clk 0:00:33.4]} 46. Kh2 {[%clk 0:00:19.5]} 46... Qf4+ {[%clk 0:00:34.1]} 0-1

[Event "Early-Titled-Tuesday-Blitz-October-03-2023"]
[Site "Chess.com"]
[Date "2023.10.03"]
[Round "8"]
[White "AttilaTurzo"]
[Black "SAInt_666"]
[Result "0-1"]
[WhiteElo "2472"]
[BlackElo "2646"]
[TimeControl "180+1"]
[EndTime "9:29:29 PDT"]
[Termination "SAInt_666 won by resignation"]

1. d4 {[%clk 0:03:00.9]} 1... Nf6 {[%clk 0:02:59.9]} 2. Bf4 {[%clk 0:03:00]}
2... Nc6 {[%clk 0:02:59]} 3. Nf3 {[%clk 0:02:57.5]} 3... d6 {[%clk 0:02:59]} 4.
c3 {[%clk 0:02:56.3]} 4... Nd7 {[%clk 0:02:56]} 5. e4 {[%clk 0:02:53.7]} 5... e5
{[%clk 0:02:53.4]} 6. dxe5 {[%clk 0:02:48.3]} 6... dxe5 {[%clk 0:02:54.3]} 7.
Be3 {[%clk 0:02:47.1]} 7... Bc5 {[%clk 0:02:47.2]} 8. Qd2 {[%clk 0:02:35.6]}
8... O-O {[%clk 0:02:35]} 9. Bb5 {[%clk 0:02:35.6]} 9... Qe7 {[%clk 0:02:29.7]}
10. Bxc6 {[%clk 0:02:29.4]} 10... bxc6 {[%clk 0:02:29.6]} 11. Bxc5 {[%clk
0:02:26]} 11... Nxc5 {[%clk 0:02:30.5]} 12. O-O {[%clk 0:02:11.5]} 12... Ba6
{[%clk 0:02:20.8]} 13. Re1 {[%clk 0:02:08.7]} 13... Rfd8 {[%clk 0:02:20.6]} 14.
Qe3 {[%clk 0:01:55]} 14... Rd3 {[%clk 0:02:19.1]} 15. Qc1 {[%clk 0:01:48.2]}
15... Rd7 {[%clk 0:02:11.7]} 16. Qe3 {[%clk 0:01:34]} 16... f6 {[%clk 0:02:06]}
17. b4 {[%clk 0:01:23.4]} 17... Nd3 {[%clk 0:02:04.2]} 18. Rd1 {[%clk
0:01:19.7]} 18... Rad8 {[%clk 0:01:57.8]} 19. Nbd2 {[%clk 0:01:18.7]} 19... c5
{[%clk 0:01:56.5]} 20. a3 {[%clk 0:01:15.5]} 20... Nf4 {[%clk 0:01:47.1]} 21.
Re1 {[%clk 0:01:04.8]} 21... Rd3 {[%clk 0:01:37.7]} 22. Qxc5 {[%clk 0:01:03.6]}
22... Qxc5 {[%clk 0:01:38.2]} 23. bxc5 {[%clk 0:01:04.5]} 23... Rxd2 {[%clk
0:01:38.8]} 24. Nxd2 {[%clk 0:01:04.2]} 24... Rxd2 {[%clk 0:01:39.7]} 25. Red1
{[%clk 0:01:03.7]} 25... Rd3 {[%clk 0:01:28.2]} 26. Rxd3 {[%clk 0:00:58]} 26...
Bxd3 {[%clk 0:01:29.1]} 27. f3 {[%clk 0:00:57.8]} 27... Ne6 {[%clk 0:01:27.7]}
28. Kf2 {[%clk 0:00:48.2]} 28... Nxc5 {[%clk 0:01:27.2]} 29. Ke3 {[%clk
0:00:48.7]} 29... Kf7 {[%clk 0:01:17.5]} 30. Rd1 {[%clk 0:00:48.6]} 30... Bb5
{[%clk 0:00:55.4]} 31. Rd8 {[%clk 0:00:49.2]} 31... a6 {[%clk 0:00:55.2]} 32.
Rc8 {[%clk 0:00:47.7]} 32... Ne6 {[%clk 0:00:55]} 33. g3 {[%clk 0:00:43.5]}
33... h6 {[%clk 0:00:47.8]} 34. h4 {[%clk 0:00:43]} 34... Ke7 {[%clk 0:00:41.6]}
35. f4 {[%clk 0:00:41.9]} 35... exf4+ {[%clk 0:00:35.9]} 36. gxf4 {[%clk
0:00:42.8]} 36... g5 {[%clk 0:00:36.4]} 37. hxg5 {[%clk 0:00:40.8]} 37... hxg5
{[%clk 0:00:35.2]} 38. f5 {[%clk 0:00:37.9]} 38... Bd7 {[%clk 0:00:30.8]} 39.
Ra8 {[%clk 0:00:28.4]} 39... Nc5 {[%clk 0:00:30.9]} 40. Kd4 {[%clk 0:00:28.6]}
40... Nb3+ {[%clk 0:00:21.9]} 41. Kc4 {[%clk 0:00:27.5]} 41... Na5+ {[%clk
0:00:20.4]} 42. Kd5 {[%clk 0:00:20.7]} 42... Bc6+ {[%clk 0:00:20.2]} 0-1

[Event "Early-Titled-Tuesday-Blitz-October-03-2023"]
[Site "Chess.com"]
[Date "2023.10.03"]
[Round "8"]
[White "cycygogne"]
[Black "amylazy"]
[Result "1-0"]
[WhiteElo "2241"]
[BlackElo "2365"]
[TimeControl "180+1"]
[EndTime "9:29:29 PDT"]
[Termination "cycygogne won by checkmate"]

1. e4 {[%clk 0:03:00.9]} 1... c5 {[%clk 0:01:03.3]} 2. Nf3 {[%clk 0:02:59.6]}
2... e6 {[%clk 0:01:03.7]} 3. d4 {[%clk 0:02:59.7]} 3... cxd4 {[%clk 0:01:04.6]}
4. Nxd4 {[%clk 0:03:00.2]} 4... a6 {[%clk 0:01:05.5]} 5. Nc3 {[%clk 0:03:00.5]}
5... Qc7 {[%clk 0:01:05.9]} 6. Bd3 {[%clk 0:02:59.3]} 6... Nf6 {[%clk
0:01:05.5]} 7. O-O {[%clk 0:02:57.7]} 7... Bc5 {[%clk 0:01:05.9]} 8. Nb3 {[%clk
0:02:55.3]} 8... Be7 {[%clk 0:01:06.4]} 9. Kh1 {[%clk 0:02:50.1]} 9... d6 {[%clk
0:01:06.6]} 10. f4 {[%clk 0:02:47.8]} 10... Nbd7 {[%clk 0:00:58.2]} 11. Qe2
{[%clk 0:02:45]} 11... b5 {[%clk 0:00:57.8]} 12. a3 {[%clk 0:02:44.3]} 12... Bb7
{[%clk 0:00:57.5]} 13. Bd2 {[%clk 0:02:44]} 13... O-O {[%clk 0:00:58]} 14. Rae1
{[%clk 0:02:43.6]} 14... g6 {[%clk 0:00:47.8]} 15. e5 {[%clk 0:02:39]} 15...
dxe5 {[%clk 0:00:48]} 16. fxe5 {[%clk 0:02:39.9]} 16... Nh5 {[%clk 0:00:48.2]}
17. Bh6 {[%clk 0:02:23.1]} 17... Ng7 {[%clk 0:00:46.5]} 18. Ne4 {[%clk
0:01:56.3]} 18... Qxe5 {[%clk 0:00:42.1]} 19. Bf4 {[%clk 0:01:52.7]} 19... Qxb2
{[%clk 0:00:40.8]} 20. Nd6 {[%clk 0:01:38.5]} 20... Bd5 {[%clk 0:00:24.5]} 21.
Qg4 {[%clk 0:01:05.9]} 21... Nf6 {[%clk 0:00:18.2]} 22. Qh4 {[%clk 0:00:58.6]}
22... Qxa3 {[%clk 0:00:17.2]} 23. Be5 {[%clk 0:00:49.2]} 23... Ngh5 {[%clk
0:00:13.1]} 24. Ra1 {[%clk 0:00:30.4]} 24... Nd7 {[%clk 0:00:02.6]} 25. Qxe7
{[%clk 0:00:28.3]} 25... Qb4 {[%clk 0:00:02.8]} 26. Qxd7 {[%clk 0:00:24.1]}
26... Qg4 {[%clk 0:00:03.4]} 27. Rf2 {[%clk 0:00:17.7]} 27... Qh4 {[%clk
0:00:03.1]} 28. Raf1 {[%clk 0:00:12.2]} 28... Rad8 {[%clk 0:00:03]} 29. Qc7
{[%clk 0:00:09.6]} 29... Ra8 {[%clk 0:00:01.6]} 30. Nxf7 {[%clk 0:00:08.6]}
30... Rxf7 {[%clk 0:00:01.3]} 31. Qxf7# {[%clk 0:00:08.7]} 1-0